bitfinex/quotes_SOLUSD_20250106
["timestamp","ask_amount","ask_price","bid_price","bid_amount"]
[1736176194612,23.776884,221.75,221.68,23.71140362]
[1736176194909,23.71140362,221.74,221.67,23.71140362]
[1736176195282,23.71140362,221.72,221.64,23.71140362]
[1736176195609,23.776884,221.73,221.66,23.71140362]
[1736176195791,23.776884,221.73,221.67,23.71140362]
[1736176195985,23.71140362,221.77,221.69,23.71140362]
[1736176196189,23.71140362,221.77,221.7,23.71140362]
[1736176196384,23.71140362,221.79,221.71,23.71140362]
[1736176196805,23.71140362,221.78,221.71,23.71140362]
[1736176197499,23.776884,221.78,221.71,23.71140362]
[1736176197688,23.71140362,221.79,221.72,23.71140362]
[1736176197897,23.71140362,221.82,221.75,23.71140362]
[1736176198400,23.776884,221.82,221.76,23.71140362]
[1736176198577,23.71140362,221.81,221.74,23.71140362]
[1736176198782,47.48828762,221.82,221.75,23.71140362]
[1736176199008,23.71140362,221.82,221.75,23.71140362]
[1736176199500,23.71140362,221.81,221.73,23.71140362]
[1736176199807,23.71140362,221.82,221.75,23.71140362]
[1736176200108,23.71140362,221.82,221.74,23.71140362]
[1736176200305,0.12549,221.83,221.74,23.71140362]
[1736176200507,23.71140362,221.81,221.74,23.71140362]
[1736176201003,23.71140362,221.82,221.74,23.71140362]
[1736176201204,23.71140362,221.8,221.73,23.71140362]
[1736176201421,23.71140362,221.81,221.74,23.71140362]
[1736176202110,11.39549,221.83,221.7,23.71140362]
[1736176202312,23.71140362,221.77,221.7,23.71140362]
[1736176202884,23.71140362,221.78,221.71,23.71140362]
[1736176203079,23.71140362,221.79,221.72,23.71140362]
[1736176203387,23.71140362,221.78,221.71,23.71140362]
[1736176203714,23.71140362,221.81,221.73,23.71140362]
[1736176204391,0.12549,221.83,221.77,23.71140362]
[1736176204605,0.12549,221.83,221.78,23.71140362]
[1736176204797,23.83689362,221.83,221.76,23.71140362]
[1736176205003,1.572,221.93,221.81,23.71140362]
[1736176205199,6.102,221.94,221.86,23.71140362]
[1736176205200,1.83962364,221.91,221.86,23.71140362]
[1736176205509,1.83962364,221.91,221.86,26.43140362]
[1736176205709,23.73540362,221.92,221.86,2.72]
[1736176206283,0.024,221.92,221.86,2.72]
[1736176206485,0.024,221.92,221.87,23.71140362]
[1736176207191,0.024,221.92,221.88,23.71140362]
[1736176207510,0.024,221.92,221.77,5.67611687]
[1736176207511,5.0,221.78,221.73,6.78145223]
[1736176207719,23.71140362,221.74,221.66,5.93577444]
[1736176207894,23.71140362,221.67,221.66,5.93577444]
[1736176208297,23.71140362,221.67,221.62,219.0]
[1736176208485,0.6761,221.66,221.62,219.0]
[1736176208885,45.45630431,221.65,221.63,2.72]
[1736176209319,9.99534315,221.64,221.61,2.72]
[1736176209524,33.03064677,221.64,221.62,2.72]
[1736176209723,12.42565754,221.65,221.63,2.72]
[1736176209918,12.42565754,221.65,221.64,2.72]
[1736176210099,12.42565754,221.65,221.56,23.71140362]
[1736176210303,23.71140362,221.61,221.52,23.71140362]
[1736176210611,7.04346789,221.6,221.53,2.72]
[1736176210826,23.71140362,221.57,221.54,2.72]
[1736176211124,7.04346789,221.58,221.54,2.72]
[1736176211625,0.6761,221.6,221.54,2.72]
[1736176211810,23.71140362,221.59,221.54,2.72]
[1736176212010,7.04346789,221.56,221.54,2.72]
[1736176212220,7.04346789,221.56,221.54,221.72]
[1736176212805,7.04346789,221.56,221.54,2.72]
[1736176213900,7.04346789,221.58,221.54,2.72]
[1736176214107,7.04346789,221.58,221.54,26.43140362]
[1736176214308,7.04346789,221.59,221.54,26.43140362]
[1736176214502,7.04346789,221.59,221.54,25.93140362]
[1736176214903,7.04346789,221.59,221.56,23.71140362]
[1736176215116,7.04346789,221.57,221.56,23.71140362]
[1736176215425,7.04346789,221.6,221.56,23.71140362]
[1736176215829,7.04346789,221.6,221.58,23.71140362]
[1736176216212,7.04346789,221.61,221.58,23.71140362]
[1736176216425,7.04346789,221.61,221.6,23.71140362]
[1736176216827,7.04346789,221.62,221.6,23.71140362]
[1736176217016,7.04346789,221.62,221.61,2.72]
[1736176217906,17.18935691,221.64,221.61,2.72]
[1736176218625,23.71140362,221.62,221.47,6.2285]
[1736176218828,23.71140362,221.57,221.5,23.71140362]
[1736176219008,24.38750362,221.56,221.51,2.72]
[1736176219220,31.42287756,221.56,221.51,221.72]
[1736176219521,23.71140362,221.52,221.41,6.528]
[1736176219708,0.6761,221.51,221.45,23.71140362]
[1736176220316,7.03537394,221.46,221.44,23.71140362]
[1736176220717,0.6761,221.51,221.45,23.71140362]
[1736176221033,7.03537394,221.52,221.45,23.71140362]
[1736176221216,24.38750362,221.51,221.44,23.71140362]
[1736176221536,7.71147394,221.51,221.45,23.71140362]
[1736176221722,31.42287756,221.51,221.43,23.71140362]
[1736176221925,23.71140362,221.5,221.42,23.71140362]
[1736176222125,7.71147394,221.51,221.46,23.71140362]
[1736176222316,7.71147394,221.51,221.44,26.43140362]
[1736176222515,7.71147394,221.51,221.46,219.0]
[1736176222720,7.03537394,221.51,221.47,23.71140362]
[1736176222909,0.6761,221.52,221.47,23.71140362]
[1736176222910,7.03537394,221.5,221.47,23.71140362]
[1736176223115,7.03537394,221.51,221.45,23.71140362]
[1736176223632,7.71147394,221.52,221.45,23.71140362]
[1736176223837,31.42287756,221.52,221.44,26.43140362]
[1736176224335,7.71147394,221.52,221.47,23.71140362]
[1736176224554,7.71147394,221.52,221.48,23.71140362]
[1736176224555,7.03537394,221.52,221.48,23.71140362]
[1736176224710,7.03537394,221.51,221.48,23.71140362]
[1736176225017,7.03537394,221.51,221.49,2.72]
[1736176225203,28.17387158,221.54,221.5,23.71140362]
[1736176225614,0.6761,221.55,221.5,23.71140362]
[1736176225809,0.6761,221.55,221.49,26.43140362]
[1736176226104,23.71140362,221.54,221.52,219.0]
[1736176226303,24.38750362,221.55,221.49,2.72]
[1736176227115,0.6761,221.55,221.49,2.72]
[1736176227308,0.6761,221.55,221.49,26.43140362]
[1736176227508,24.38750362,221.58,221.5,23.71140362]
[1736176227761,0.6761,221.58,221.51,23.71140362]
[1736176227922,24.38750362,221.58,221.51,23.71140362]
[1736176228427,31.42287756,221.62,221.54,23.71140362]
[1736176228610,7.71147394,221.62,221.55,23.71140362]
[1736176228814,7.03537394,221.62,221.58,23.71140362]
[1736176229747,0.6761,221.64,221.58,25.35540362]
[1736176230626,23.71140362,221.67,221.59,23.71140362]
[1736176230827,23.71140362,221.66,221.59,23.71140362]
[1736176231032,23.71140362,221.67,221.59,23.71140362]
[1736176231345,23.71140362,221.67,221.6,23.71140362]
[1736176231559,6.308,221.69,221.59,23.71140362]
[1736176231560,24.38750362,221.66,221.59,23.71140362]
[1736176231945,23.71140362,221.65,221.58,1.644]
[1736176232131,23.71140362,221.59,221.52,2.72]
[1736176232338,23.71140362,221.57,221.52,2.72]
[1736176232655,0.12549,221.6,221.52,2.72]
[1736176232656,23.71140362,221.55,221.52,221.72]
[1736176232861,23.71140362,221.55,221.52,2.72]
[1736176233158,23.71140362,221.53,221.41,5.0]
[1736176233356,23.71140362,221.46,221.36,11.2937]
[1736176233556,23.71140362,221.46,221.39,23.71140362]
[1736176233759,0.6761,221.52,221.36,11.2937]
[1736176233942,23.71140362,221.38,221.32,11.2956]
[1736176234143,20.0,221.4,221.21,0.67758148]
[1736176234335,0.6761,221.39,221.25,2.72]
[1736176235134,1.5547,221.43,221.29,23.71140362]
[1736176235135,23.71140362,221.36,221.29,23.71140362]
[1736176235459,25.26610362,221.43,221.27,23.71140362]
[1736176235460,24.38750362,221.35,221.27,23.71140362]
[1736176235660,23.71140362,221.34,221.27,26.43140362]
[1736176235873,23.71140362,221.28,221.24,219.0]
[1736176236049,23.71140362,221.28,221.15,1.6152]
[1736176236050,23.71140362,221.27,221.2,26.43140362]
[1736176236252,23.71140362,221.25,221.12,5.0]
[1736176236469,23.71140362,221.24,221.17,23.71140362]
[1736176236641,23.71140362,221.23,221.16,23.71140362]
[1736176236962,23.71140362,221.23,221.13,2.72]
[1736176236963,24.38750362,221.22,221.15,23.71140362]
[1736176237162,23.71140362,221.25,221.18,23.71140362]
[1736176237370,24.38750362,221.24,221.17,23.71140362]
[1736176237669,23.71140362,221.22,221.15,23.71140362]
[1736176237864,24.38750362,221.21,221.13,43.71140362]
[1736176238039,23.71140362,221.19,221.12,23.71140362]
[1736176238357,23.71140362,221.19,221.04,5.0]
[1736176238358,23.71140362,221.16,221.03,16.3106]
[1736176238563,23.71140362,221.21,221.07,23.71140362]
[1736176238564,24.38750362,221.15,221.07,23.71140362]
[1736176238775,23.71140362,221.14,221.07,23.71140362]
[1736176238951,23.71140362,221.15,221.07,242.71140362]
[1736176239146,0.6761,221.14,221.07,242.71140362]
[1736176239460,0.6761,221.19,221.12,38.62798272]
[1736176239669,38.62798272,221.18,221.11,38.62798272]
[1736176239858,0.6761,221.17,221.07,219.0]
[1736176240054,0.6761,221.19,221.11,38.62798272]
[1736176240283,0.6761,221.19,221.07,219.0]
[1736176240579,0.6761,221.19,221.05,11.3096]
[1736176240788,0.6761,221.19,221.06,23.776884]
[1736176241153,39.30408272,221.19,221.12,38.62798272]
[1736176241475,38.62798272,221.18,221.11,38.62798272]
[1736176241684,38.62798272,221.19,221.12,38.62798272]
[1736176241888,39.30408272,221.18,221.11,38.62798272]
[1736176242392,39.30408272,221.18,221.1,38.62798272]
[1736176242688,39.30408272,221.18,221.11,38.62798272]
[1736176242869,44.80758272,221.2,221.13,38.62798272]
[1736176243207,39.30408272,221.24,221.16,38.62798272]
[1736176243357,0.6761,221.24,221.18,38.62798272]
[1736176243554,44.93808272,221.27,221.2,38.62798272]
[1736176243876,0.6761,221.26,221.19,38.62798272]
[1736176245081,38.62798272,221.24,221.17,38.62798272]
[1736176245264,39.30408272,221.23,221.16,41.36798272]
[1736176245958,38.62798272,221.26,221.18,38.62798272]
[1736176246275,6.3101,221.27,221.16,2.74]
[1736176246276,38.62798272,221.23,221.16,2.74]
[1736176246477,38.62798272,221.17,221.1,38.62798272]
[1736176246686,0.6761,221.16,221.08,38.62798272]
[1736176246871,38.62798272,221.15,221.08,257.62798272]
[1736176247073,5.0,221.26,221.08,257.62798272]
[1736176247074,0.6761,221.14,221.09,38.62798272]
[1736176247674,39.30408272,221.14,221.08,219.0]
[1736176247881,38.62798272,221.11,221.08,219.0]
[1736176248089,38.62798272,221.11,221.04,38.62798272]
[1736176248269,38.62798272,221.15,221.08,38.62798272]
[1736176248475,0.6761,221.14,221.08,38.62798272]
[1736176248677,39.30408272,221.14,221.08,38.62798272]
[1736176248988,0.6761,221.14,221.03,2.74]
[1736176249176,40.88748272,221.19,221.12,38.62798272]
[1736176249485,38.62798272,221.22,221.15,38.62798272]
[1736176249689,38.62798272,221.2,221.13,38.62798272]
[1736176249884,38.62798272,221.21,221.14,38.62798272]
[1736176250184,0.6761,221.2,221.14,38.62798272]
[1736176250390,38.62798272,221.25,221.12,2.74]
[1736176250577,0.6761,221.24,221.19,38.62798272]
[1736176250777,39.30408272,221.24,221.17,38.62798272]
[1736176250973,1.571,221.26,221.19,38.62798272]
[1736176250974,40.19898272,221.26,221.19,38.62798272]
[1736176251167,40.19898272,221.26,221.19,257.62798272]
[1736176251373,1.571,221.26,221.2,38.62798272]
[1736176251679,40.87508272,221.26,221.19,38.62798272]
[1736176251878,38.62798272,221.25,221.18,38.62798272]
[1736176252078,2.2471,221.26,221.13,35.082384]
[1736176252079,38.62798272,221.23,221.16,58.62798272]
[1736176252388,38.62798272,221.25,221.18,38.62798272]
[1736176252589,0.6761,221.24,221.18,38.62798272]
[1736176252891,38.62798272,221.32,221.18,38.62798272]
[1736176252892,38.62798272,221.4,221.26,20.0]
[1736176253077,0.6761,221.39,221.34,38.62798272]
[1736176253267,0.6761,221.39,221.33,38.62798272]
[1736176253463,6.1392,221.43,221.32,20.0]
[1736176253681,0.6761,221.48,221.32,20.0]
[1736176254076,0.6761,221.48,221.33,23.776884]
[1736176254281,0.6761,221.48,221.36,20.0]
[1736176254603,38.62798272,221.47,221.4,38.62798272]
[1736176254771,6.2619,221.65,221.55,5.0]
[1736176254971,7.03537394,221.67,221.64,38.62798272]
[1736176255172,7.03537394,221.67,221.63,38.62798272]
[1736176255470,7.03537394,221.7,221.61,2.74]
[1736176255883,7.03537394,221.7,221.67,38.62798272]
[1736176256197,6.2619,221.74,221.68,38.62798272]
[1736176256383,0.12549,221.73,221.68,38.62798272]
[1736176256695,6.2619,221.74,221.68,38.62798272]
[1736176256903,0.12549,221.73,221.69,38.62798272]
[1736176257209,38.62798272,221.79,221.71,38.62798272]
[1736176257513,38.62798272,221.78,221.7,38.62798272]
[1736176257684,38.62798272,221.79,221.71,38.62798272]
[1736176257993,62.53035672,221.78,221.7,38.62798272]
[1736176258172,0.12549,221.78,221.67,219.0]
[1736176258372,0.12549,221.78,221.75,38.62798272]
[1736176258676,0.12549,221.78,221.76,38.62798272]
[1736176258889,0.12549,221.78,221.77,38.62798272]
[1736176260298,1.6429,221.82,221.77,38.62798272]
[1736176260494,1.6429,221.82,221.79,38.62798272]
[1736176261795,1.6429,221.82,221.69,219.0]
[1736176261796,6.538,221.83,221.81,38.62798272]
[1736176261975,7.5594,221.92,221.82,38.62798272]
[1736176262175,7.5594,221.92,221.87,38.62798272]
[1736176262578,7.5594,221.92,221.76,38.62798272]
[1736176262784,20.0,221.89,221.77,2.72]
[1736176262992,7.5594,221.92,221.79,20.0]
[1736176263501,11.615,222.19,221.96,5.0]
[1736176263799,38.62798272,222.16,222.07,38.62798272]
[1736176264020,38.62798272,222.13,222.05,38.62798272]
[1736176264295,38.62798272,222.15,222.07,38.62798272]
[1736176264497,5.0,222.17,222.05,2.72]
[1736176264498,38.62798272,222.13,222.05,38.62798272]
[1736176264699,38.62798272,222.09,222.02,38.62798272]
[1736176264920,0.12549,222.06,222.02,219.0]
[1736176265200,0.12549,222.06,222.02,38.62798272]
[1736176265584,0.12549,222.06,222.03,38.62798272]
[1736176266093,62.40486672,222.04,221.96,38.62798272]
[1736176266278,0.12549,222.06,221.99,38.62798272]
[1736176266473,23.776884,222.05,222.0,38.62798272]
[1736176266699,0.12549,222.06,222.01,38.62798272]
[1736176267077,0.12549,222.06,222.0,38.62798272]
[1736176267298,0.12549,222.06,221.95,2.72]
[1736176267299,0.12549,222.06,222.01,38.62798272]
[1736176267596,23.902374,222.06,222.0,38.62798272]
[1736176267902,38.62798272,222.03,221.96,38.62798272]
[1736176268198,62.40486672,221.97,221.91,2.72]
[1736176268498,20.0,222.03,221.93,38.62798272]
[1736176268716,23.776884,222.0,221.93,41.34798272]
[1736176268884,38.62798272,222.03,221.96,38.62798272]
[1736176269211,0.12549,222.06,221.97,38.62798272]
[1736176269212,38.62798272,222.04,221.97,38.62798272]
[1736176269385,38.62798272,222.05,221.98,38.62798272]
[1736176269589,38.75347272,222.06,221.99,38.62798272]
[1736176269905,38.75347272,222.06,221.98,38.62798272]
[1736176269906,38.62798272,222.05,221.98,38.62798272]
[1736176270084,38.62798272,222.04,221.97,38.62798272]
[1736176270420,0.12549,222.06,222.01,38.62798272]
[1736176270581,0.12549,222.06,222.02,2.72]
[1736176270782,0.12549,222.06,222.0,2.72]
[1736176271083,0.12549,222.06,222.0,2.0]
[1736176271817,38.62798272,222.01,222.0,2.0]
[1736176271984,62.40486672,222.01,222.0,2.0]
[1736176272585,61.90486672,222.01,222.0,2.0]
[1736176273788,6.95284809,222.06,222.0,2.0]
[1736176273789,38.62798272,222.02,222.0,2.0]
[1736176273990,38.62798272,222.01,222.0,2.0]
[1736176274407,38.62798272,222.03,222.0,2.0]
[1736176274725,38.62798272,222.02,222.0,2.0]
[1736176275030,38.62798272,222.05,222.0,2.0]
[1736176275223,38.62798272,222.07,222.0,2.0]
[1736176275390,38.62798272,222.06,222.01,2.72]
[1736176275591,38.62798272,222.05,222.0,2.0]
[1736176275791,38.62798272,222.05,222.01,2.72]
[1736176276100,38.62798272,222.06,222.01,2.72]
[1736176276616,16.2536,222.16,222.01,41.34798272]
[1736176276617,38.62798272,222.08,222.01,41.34798272]
[1736176276793,5.0,222.17,222.01,2.72]
[1736176276794,38.62798272,222.07,222.01,2.72]
[1736176276990,38.62798272,222.07,222.01,221.72]
[1736176277509,38.62798272,222.04,222.0,2.0]
[1736176277894,38.62798272,222.02,222.01,2.72]
[1736176278308,23.776884,222.01,222.0,2.0]
[1736176278494,38.62798272,222.01,222.0,2.0]
[1736176278699,38.62798272,222.03,222.0,2.0]
[1736176278885,23.902374,222.02,222.0,2.0]
[1736176279090,62.40486672,222.01,222.0,2.0]
[1736176279329,23.776884,222.01,222.0,2.0]
[1736176279521,62.40486672,222.01,222.0,2.0]
[1736176280325,23.776884,222.01,222.0,2.0]
[1736176280525,38.75347272,222.02,222.0,2.0]
[1736176280711,38.62798272,222.01,222.0,2.0]
[1736176280900,38.75347272,222.02,222.0,2.0]
[1736176281724,62.40486672,222.01,222.0,2.0]
[1736176281919,38.62798272,222.01,222.0,2.0]
[1736176282123,62.40486672,222.01,222.0,2.0]
[1736176282314,38.75347272,222.02,222.0,2.0]
[1736176283097,38.62798272,222.01,222.0,2.0]
[1736176283491,38.75347272,222.02,222.0,2.0]
[1736176283804,38.62798272,222.01,222.0,2.0]
[1736176285237,0.12549,222.02,222.0,2.0]
[1736176285400,38.62798272,222.06,222.0,2.0]
[1736176286027,38.62798272,222.07,222.0,2.0]
[1736176286536,38.62798272,222.04,222.01,2.72]
[1736176286749,38.62798272,222.03,222.0,2.0]
[1736176287033,62.40486672,222.01,222.0,2.0]
[1736176287236,38.62798272,222.01,222.0,2.0]
[1736176287451,38.62798272,222.01,222.0,4.0]
[1736176287735,62.40486672,222.01,222.0,4.0]
[1736176287909,38.62798272,222.02,222.0,4.0]
[1736176289007,0.12549,222.01,222.0,4.0]
[1736176289543,38.62798272,222.02,222.0,4.0]
[1736176289835,38.75347272,222.01,222.0,4.0]
[1736176290347,38.62798272,222.04,222.0,4.0]
[1736176290638,0.12549,222.03,222.0,4.0]
[1736176291146,23.57842159,222.06,222.0,4.0]
[1736176291441,0.12549,222.05,222.0,27.57842159]
[1736176291664,23.57842159,222.09,222.01,23.57842159]
[1736176291867,23.57842159,222.09,222.02,23.57842159]
[1736176292053,23.57842159,222.09,222.01,23.57842159]
[1736176292232,0.12549,222.08,222.01,23.57842159]
[1736176292434,23.70391159,222.08,222.01,23.57842159]
[1736176292861,23.57842159,222.07,222.0,27.57842159]
[1736176293048,23.57842159,222.07,222.0,4.0]
[1736176293238,23.57842159,222.06,222.0,4.0]
[1736176293445,23.57842159,222.04,222.0,4.0]
[1736176293661,23.57842159,222.05,222.0,4.0]
[1736176294370,23.776884,222.06,222.0,4.0]
[1736176294761,23.57842159,222.04,222.0,4.0]
[1736176295055,23.57842159,222.05,222.0,4.0]
[1736176295258,23.776884,222.06,222.0,6.8]
[1736176295447,0.12549,222.08,222.01,23.57842159]
[1736176295646,23.70391159,222.08,222.01,23.57842159]
[1736176296075,23.57842159,222.07,222.0,6.8]
[1736176296377,23.57842159,222.05,222.0,6.8]
[1736176296656,23.57842159,222.06,222.0,6.8]
[1736176296987,23.57842159,222.05,222.0,4.0]
[1736176297269,23.57842159,222.02,222.0,4.0]
[1736176297571,23.57842159,222.05,222.0,4.0]
[1736176297748,35.034584,222.07,222.0,4.0]
[1736176298076,23.776884,222.06,222.0,4.0]
[1736176298245,47.35530559,222.01,222.0,4.0]
[1736176299137,23.57842159,222.01,222.0,4.0]
[1736176299671,20.0,221.97,221.84,23.57842159]
[1736176299876,23.57842159,221.89,221.82,23.57842159]
[1736176300078,23.57842159,221.9,221.83,23.57842159]
[1736176300561,23.57842159,221.89,221.82,23.57842159]
[1736176300751,23.57842159,221.88,221.81,23.57842159]
[1736176301069,23.57842159,221.91,221.79,2.8]
[1736176301236,23.57842159,221.91,221.84,23.57842159]
[1736176301237,1.6593,221.9,221.84,23.57842159]
[1736176301437,1.6593,221.9,221.64,10.0]
[1736176301438,11.2697,221.84,221.64,10.0]
[1736176301641,11.2674,221.88,221.71,23.57842159]
[1736176301848,23.57842159,221.8,221.72,23.57842159]
[1736176302044,23.57842159,221.78,221.7,23.57842159]
[1736176302487,23.57842159,221.78,221.71,23.57842159]
[1736176302657,23.57842159,221.79,221.71,23.57842159]
[1736176302983,23.57842159,221.77,221.7,23.57842159]
[1736176303188,23.57842159,221.74,221.67,23.57842159]
[1736176303499,23.57842159,221.73,221.66,23.57842159]
[1736176303663,23.57842159,221.75,221.68,23.57842159]
[1736176303984,11.2691,221.85,221.7,23.57842159]
[1736176303985,23.57842159,221.77,221.7,23.57842159]
[1736176304186,22.14468362,221.96,221.66,20.0]
[1736176304187,11.267,221.89,221.75,23.57842159]
[1736176304366,23.57842159,221.83,221.75,23.57842159]
[1736176305096,23.57842159,221.83,221.76,23.57842159]
[1736176305257,23.57842159,221.85,221.77,23.57842159]
[1736176305592,0.57842159,221.85,221.77,23.57842159]
[1736176305953,23.57842159,221.85,221.77,23.57842159]
[1736176306154,23.57842159,221.86,221.79,23.57842159]
[1736176306378,23.57842159,221.82,221.75,23.57842159]
[1736176306677,23.57842159,221.83,221.76,23.57842159]
[1736176306877,23.57842159,221.8,221.73,23.57842159]
[1736176307086,23.776884,221.89,221.79,196.0]
[1736176307279,23.57842159,221.82,221.79,196.0]
[1736176307481,23.57842159,221.82,221.74,23.57842159]
[1736176308215,23.57842159,221.84,221.76,23.57842159]
[1736176308393,23.57842159,221.82,221.75,23.57842159]
[1736176308580,23.776884,221.89,221.72,22.8]
[1736176308903,23.57842159,221.8,221.73,23.57842159]
[1736176309112,23.57842159,221.79,221.74,20.0]
[1736176309331,23.57842159,221.81,221.74,43.57842159]
[1736176309502,23.57842159,221.82,221.75,23.57842159]
[1736176309818,19.1776,221.9,221.75,23.57842159]
[1736176309993,23.57842159,221.82,221.75,23.57842159]
[1736176310520,23.57842159,221.82,221.81,150.0]
[1736176311926,47.35530559,221.82,221.81,150.0]
[1736176312307,23.57842159,221.82,221.7,23.57842159]
[1736176312512,23.57842159,221.78,221.7,23.57842159]
[1736176313036,23.57842159,221.77,221.7,23.57842159]
[1736176313212,23.57842159,221.76,221.69,23.57842159]
[1736176313407,23.57842159,221.72,221.65,23.57842159]
[1736176313636,23.57842159,221.74,221.67,23.57842159]
[1736176313801,23.57842159,221.75,221.67,23.57842159]
[1736176314218,23.57842159,221.75,221.68,23.57842159]
[1736176314421,5.0,221.86,221.7,23.57842159]
[1736176314422,23.57842159,221.78,221.7,23.57842159]
[1736176315140,23.57842159,221.78,221.71,23.57842159]
[1736176315443,23.57842159,221.87,221.66,20.0]
[1736176315444,23.57842159,221.8,221.73,23.57842159]
[1736176315598,23.57842159,221.87,221.74,23.57842159]
[1736176315794,23.57842159,221.81,221.7,11.2761]
[1736176315995,23.57842159,221.79,221.72,23.57842159]
[1736176316204,23.57842159,221.79,221.71,23.57842159]
[1736176316407,23.57842159,221.8,221.78,34.0]
[1736176316837,23.57842159,221.8,221.73,23.57842159]
[1736176317036,23.57842159,221.83,221.75,23.57842159]
[1736176317215,23.57842159,221.83,221.76,23.57842159]
[1736176317416,23.57842159,221.82,221.75,23.57842159]
[1736176317730,19.1776,221.9,221.73,2.8]
[1736176317731,23.57842159,221.81,221.74,23.57842159]
[1736176317910,23.57842159,221.8,221.73,26.37842159]
[1736176318554,23.776884,221.86,221.71,23.57842159]
[1736176318555,23.57842159,221.78,221.71,23.57842159]
[1736176318718,23.57842159,221.8,221.73,23.57842159]
[1736176318917,23.57842159,221.81,221.74,23.57842159]
[1736176319218,23.57842159,221.8,221.73,23.57842159]
[1736176319553,23.57842159,221.8,221.72,23.57842159]
[1736176319753,11.2698,221.84,221.71,23.57842159]
[1736176319754,23.57842159,221.78,221.71,23.57842159]
[1736176319961,7.911,221.9,221.8,20.0]
[1736176320259,23.57842159,221.95,221.88,23.57842159]
[1736176320417,23.57842159,221.96,221.89,23.57842159]
[1736176320837,23.57842159,221.96,221.88,23.57842159]
[1736176321242,23.57842159,221.89,221.81,20.0]
[1736176321449,23.57842159,221.87,221.81,20.0]
[1736176321731,23.57842159,221.9,221.83,23.57842159]
[1736176322054,23.776884,221.94,221.81,20.0]
[1736176322258,23.57842159,221.92,221.83,23.57842159]
[1736176322478,23.57842159,221.94,221.87,23.57842159]
[1736176322650,23.57842159,221.93,221.85,23.57842159]
[1736176322835,23.57842159,221.91,221.84,23.57842159]
[1736176323157,23.57842159,221.89,221.81,23.57842159]
[1736176323461,23.57842159,221.92,221.84,23.57842159]
[1736176323637,23.57842159,221.92,221.8,20.0]
[1736176323638,23.57842159,221.92,221.85,23.57842159]
[1736176323836,23.57842159,221.96,221.88,23.57842159]
[1736176324051,23.57842159,221.95,221.88,23.57842159]
[1736176324257,0.12549,221.94,221.88,23.57842159]
[1736176324454,0.12549,221.94,221.89,23.57842159]
[1736176324836,0.12549,221.94,221.87,23.57842159]
[1736176325035,0.12549,221.94,221.9,23.57842159]
[1736176325370,0.12549,221.94,221.89,23.57842159]
[1736176325543,0.12549,221.94,221.9,23.57842159]
[1736176325857,0.12549,221.94,221.91,23.57842159]
[1736176326563,0.12549,221.94,221.9,23.57842159]
[1736176326761,0.12549,221.94,221.86,2.78]
[1736176326762,0.12549,221.94,221.91,23.57842159]
[1736176327061,0.12549,221.94,221.92,23.57842159]
[1736176327561,23.57842159,222.02,221.93,23.57842159]
[1736176327755,23.57842159,222.02,221.87,28.57842159]
[1736176327756,30.07052159,222.03,221.95,23.57842159]
[1736176327948,0.12549,222.02,221.96,23.57842159]
[1736176328153,23.902374,222.02,221.95,26.35842159]
[1736176328352,23.57842159,222.01,221.95,2.78]
[1736176328560,23.902374,222.02,221.95,2.78]
[1736176328561,23.776884,221.99,221.95,2.78]
[1736176328758,23.776884,221.97,221.9,23.57842159]
[1736176329143,0.12549,222.02,221.92,23.57842159]
[1736176329144,23.57842159,221.99,221.92,23.57842159]
[1736176329844,23.902374,222.02,221.89,2.78]
[1736176329845,23.57842159,222.01,221.94,23.57842159]
[1736176330047,0.12549,222.02,221.98,23.57842159]
[1736176330265,0.12549,222.02,221.9,5.0]
[1736176330266,23.57842159,222.08,222.01,23.57842159]
[1736176330445,23.57842159,222.09,222.02,23.57842159]
[1736176330960,23.70391159,222.04,222.0,2.78]
[1736176331351,23.70391159,222.04,222.0,2.0]
[1736176331352,23.776884,222.02,222.0,2.0]
[1736176331560,47.35530559,222.01,222.0,2.0]
[1736176332462,53.54660559,222.01,222.0,2.0]
[1736176333045,53.54660559,222.01,221.88,23.57842159]
[1736176333046,23.776884,222.0,221.88,23.57842159]
[1736176333264,23.776884,221.94,221.88,23.57842159]
[1736176333575,47.35530559,221.95,221.88,23.57842159]
[1736176333781,11.2612,222.0,221.82,21.6332]
[1736176333782,23.776884,221.88,221.82,23.57842159]